Cogmind - Beta 16 --- EXPLORER MODE // 2025.12.11 @ 12:11:07 Player: K.K.Y. Result: Destroyed by Y-45 Defender with Heavy Assault Rifle Performance ------------- Evolutions (0) 0 Regions Visited (4) 800 Robots Destroyed (49) 245 Value Destroyed (1015) 1015 Prototype IDs (15) 300 Alien Tech Used (0) 0 Bonus (0) 0 TOTAL SCORE: 2360 Bonus ------- None Cogmind --------- Core Integrity 0/250 Matter 294/300 Energy 86/100 System Corruption 0% Temperature Cool (12) Movement Rolling (100) Location -9/Recycling Parts ------- > --- POWER (1) -------- (None) > --- PROPULSION (3) --- Compact Wheel Compact Wheel Compact Wheel > --- UTILITY (2) ------ High-capacity Storage Unit > --- WEAPON (2) ------- Beam Rifle Heavy Assault Rifle > --- INVENTORY (20) --- Improved Ion Engine Subdweller Power Source Subdweller Monowheel Subdweller Monowheel Subdweller Monowheel Subdweller Monowheel VTOL Module Structural Scanner Subdweller Optics Subdweller Optics Scrap Shield Rainbow Chip Subdweller Laser Subdweller Laser Subdweller Laser Subdweller Laser Autobeam Subdweller Machine Gun Peak State ------------ > --- POWER ------------ Light Ion Engine > --- PROPULSION ------- Flight Unit Flight Unit Flight Unit > --- UTILITY ---------- Experimental Sensor Array Improved Terrain Scanner > --- WEAPON ----------- Particle Gun Beam Cannon > --- INVENTORY -------- High-capacity Storage Unit Weight Redist. System Structural Scanner Rainbow Chip Mining Laser [Rating: 20] Favorites ----------- Power Light Ion Engine Engine Light Ion Engine Propulsion Flight Unit Wheel Compact Wheel Flight Unit Flight Unit Utility High-capacity Storage Unit Device Weight Redist. System Storage High-capacity Storage Unit Weapon Riot Gun Energy Gun Riot Gun Energy Cannon Beam Cannon Ballistic Gun Assault Rifle Special Weapon Mining Laser Special Melee Weapon Datajack Build | -11 -10 -10 -10 -9 ------- Run | Yrd Mat Min Sub Rec Slots Evolved 1 | . 1 . . . Power . | . . . . . Propulsion 1 | . 1 . . . Utility . | . . . . . Weapon . | . . . . . Parts Attached 33 | 6 8 3 10 6 Power 2 | 1 . . 1 . Engine 2 | 1 . . 1 . Core . | . . . . . Reactor . | . . . . . Propulsion 13 | 2 5 . 3 3 Treads . | . . . . . Leg . | . . . . . Wheel 7 | 2 2 . . 3 Hover . | . . . . . Flight 6 | . 3 . 3 . Utility 6 | 1 1 2 2 . Device 5 | 1 1 2 1 . Storage 1 | . . . 1 . Processor . | . . . . . Hackware . | . . . . . Protection . | . . . . . Artifact . | . . . . . Weapon 12 | 2 2 1 4 3 Energy Gun 5 | . 1 . 2 2 Energy Cannon 1 | . . 1 . . Ballistic Gun 4 | 2 . . 1 1 Ballistic Cannon . | . . . . . Launcher . | . . . . . Special Weapon 1 | . . . 1 . Impact Weapon . | . . . . . Slashing Weapon . | . . . . . Piercing Weapon . | . . . . . Special Melee Weapon 1 | . 1 . . . Unidentified Prototypes 1 | . . 1 . . Parts Lost 13 | . . . 10 3 Power 2 | . . . 2 . Propulsion 5 | . . . 3 2 Utility 3 | . . . 3 . Weapon 3 | . . . 2 1 Highest Loss Streak 6 | . . . 6 2 To Critical Strikes 1 | . . . 1 . Average Backups 12 | 1 4 4 8 17 Power 1 | . . . . 1 Propulsion 2 | . . . 1 4 Utility 4 | 1 2 2 3 5 Weapon 4 | . 1 1 3 6 Tool/Special . | . . . . . Unused Backups 18 | 1 3 . . 14 Power 2 | . . . . 2 Propulsion 5 | . . . . 5 Utility 7 | 1 2 . . 4 Weapon 4 | . 1 . . 3 Tool/Special . | . . . . . Average Slot Usage (%) 59 | . 86 100 79 38 Engine 4 | . 12 12 7 . Wheel 4 | . 15 . . 4 Flight 19 | . 16 37 32 11 Device 7 | . 17 25 13 . Storage 8 | . . . 5 12 Energy Gun 9 | . 7 12 11 8 Energy Cannon 2 | . . 10 5 . Ballistic Gun 1 | . 14 . . . Peak Build Rating 20 | 6 10 19 20 14 Average Rating 10 | 4 8 18 14 8 On Entrance 9 | . 6 10 19 14 Avg Prop Armor Cover (%) 6 | . . . . 6 Naked Turns . | . . . . . Heaviest Build 50 | 7 9 11 50 46 Greatest Support 48 | 20 30 18 22 48 Greatest Overweight (x) 10 | 2 2 . 2 10 Average Overweight (x) . | . . . . 4 Largest Inventory Capacity 20 | 5 5 5 20 20 Average Capacity 14 | 5 5 5 11 20 Most Carried 20 | 5 5 5 17 20 Average Carried 12 | 2 4 4 9 18 Final Capacity 20 | 5 5 5 20 20 Final Carried 19 | 3 5 5 17 19 Class Distribution -------------------- 95% | Hacker-Mutant 4% | Scavenger-Mutant Dominant Class ---------------- Hacker-Mutant | -10/Materials Hacker-Mutant | -10/Mines Hacker-Mutant | -10/Subcaves Hacker-Mutant | -9/Recycling Resources | -11 -10 -10 -10 -9 ----------- Run | Yrd Mat Min Sub Rec Matter Collected 815 | 321 248 30 141 75 Remotely . | . . . . . Salvage Created 1995 | 205 415 . 696 679 Parts 106 | 23 28 . 35 20 Haulers Intercepted 2 | . 2 . . . Recyclers Shooed . | . . . . . Parts Field Recycled . | . . . . . Retrieved Matter . | . . . . . Parts Self-Destructed . | . . . . . Prevented . | . . . . . Parts Restored . | . . . . . Kills | -11 -10 -10 -10 -9 ------- Run | Yrd Mat Min Sub Rec Combat Hostiles Destroyed 25 | . 5 . 17 3 Guns 18 | . 5 . 10 3 Cannons 6 | . . . 6 . Classes Destroyed 10 | 2 5 . 2 1 Builder 2 | . 2 . . . Tunneler 7 | 6 1 . . . Hauler 2 | . 2 . . . Recycler 9 | 1 1 . . 7 Turret 2 | . . . 2 . Watcher 2 | . 2 . . . Swarmer 7 | . 3 . 4 . Grunt 2 | . 2 . . . Sentry 3 | . . . . 3 Subdweller 13 | . . . 13 . Best Kill Streak 5 | 2 5 . 4 2 Combat Bots Only 4 | . 2 . 4 1 Max Kills in Single Turn 1 | 1 1 . 1 1 Gunslinging . | . . . . . Exploded . | . . . . . Melee . | . . . . . Uniques/NPCs Destroyed . | . . . . . Combat | -11 -10 -10 -10 -9 -------- Run | Yrd Mat Min Sub Rec Hostile Shots Fired 160 | . 33 . 99 28 Missed 57 | . 12 . 41 4 Hits 103 | . 21 . 58 24 Projectile 103 | . 21 . 58 24 AOE 1 | . . . 1 . Critical Strikes 3 | . 2 . 1 . Damage Taken 902 | . 118 . 563 221 Core 254 | . 39 . 169 46 Absorbed by Shields . | . . . . . Ignored by Resistances 531 | . 81 . 318 132 Core Remaining (%) 100 | 100 . . . . Volleys Fired 174 | 20 40 . 63 51 Largest 2 | 2 2 . 2 2 Hottest 165 | 40 85 . 165 79 Shots Fired 287 | 40 77 . 112 58 Gun 235 | 40 77 . 60 58 Cannon 46 | . . . 46 . Launcher . | . . . . . Special 6 | . . . 6 . Kinetic 109 | 40 59 . 3 7 Thermal 157 | . 18 . 92 47 Explosive . | . . . . . Electromagnetic 21 | . . . 17 4 Robot Hit Streak 45 | 18 15 . 45 43 Robot Miss Streak 2 | 1 2 . 2 1 Penetration Max . | . . . . . Secondary Targets . | . . . . . Shots Hit Robots 214 | 33 57 . 71 53 Core Hits 85 | 11 19 . 35 20 Critical Kills 1 | . . . 1 . Critical Parts Destroyed 1 | 1 . . . . Critical Strikes 6 | 1 . . 1 4 Burn 4 | . . . . 4 Meltdown 1 | . . . 1 . Destroy 1 | 1 . . . . Melee Attacks . | . . . . . Impact . | . . . . . Slashing . | . . . . . Piercing . | . . . . . Sneak Attacks . | . . . . . Combat Hostiles . | . . . . . Follow-up Attacks . | . . . . . Damage Inflicted 3015 | 369 668 . 1187 791 Guns 2470 | 369 668 . 642 791 Cannons 545 | . . . 545 . Explosions . | . . . . . Melee . | . . . . . Ramming . | . . . . . Kinetic 1001 | 369 499 . 42 91 Thermal 1789 | . 169 . 983 637 Explosive . | . . . . . Electromagnetic 225 | . . . 162 63 Impact . | . . . . . Slashing . | . . . . . Piercing . | . . . . . Highest Corruption . | . . . . . Average Corruption . | . . . . . Corruption Purged . | . . . . . Corruption Blocked . | . . . . . Overload Shots . | . . . . . Overflow Damage . | . . . . . Projectiles . | . . . . . Explosions . | . . . . . Melee . | . . . . . Knockbacks . | . . . . . Impact . | . . . . . Kinetic . | . . . . . Secondary . | . . . . . Self-Inflicted Damage . | . . . . . Shots . | . . . . . Rammed . | . . . . . Targets Rammed . | . . . . . Kicked . | . . . . . Crushed . | . . . . . Highest Temperature 240 | . 240 . 60 64 Average Temperature 37 | . 73 . 17 20 Received Heat Transfer 246 | . 60 . 78 108 Siege Activations . | . . . . . Martial Activations . | . . . . . Shielding Activations . | . . . . . Robots Disrupted . | . . . . . Combat Hostiles . | . . . . . Robots Corrupted . | . . . . . Combat Hostiles . | . . . . . Parts Fried . | . . . . . Impact Corruptions . | . . . . . Robots Melted 1 | . . . 1 . Combat Hostiles 1 | . . . 1 . Parts Melted 9 | . 1 . 4 4 Heat Transferred 4453 | . 407 . 2183 1863 Parts Sabotaged . | . . . . . Parts Stolen . | . . . . . Parts Stripped . | . . . . . Power Chain Reactions . | . . . . . Alert | -11 -10 -10 -10 -9 ------- Run | Yrd Mat Min Sub Rec Maximum Alert Level . | . . . . . Low Security (%) 100 | 100 100 100 . 100 Level 1 . | . . . . . Level 2 . | . . . . . Level 3 . | . . . . . Level 4 . | . . . . . Level 5 . | . . . . . High Security . | . . . . . Max Security . | . . . . . Peak Influence 50 | 10 50 . . 20 Initial 2 | . 2 . . . Average 1 | 1 6 . . . Influence Increases 541 | 35 169 . 240 97 Destroy 0b10 Robot/C 280 | . 100 . 120 60 Destroy 0b10 Robot/NC 110 | 35 40 . . 35 Destroy Leader 28 | . 28 . . . Successful Hack 2 | . . . . 2 Destroy Structure 1 | . 1 . . . Lose Combat Pursuer 120 | . . . 120 . Influence Decreases 541 | 30 174 . 240 97 Entered New Map 3 | . 3 . . . Time Decay 508 | 30 171 . 210 97 Lost Part 30 | . . . 30 . Squads Dispatched . | . . . . . Investigation . | . . . . . Extermination . | . . . . . Reinforcement . | . . . . . Assault . | . . . . . Garrison . | . . . . . Intercept . | . . . . . Searches Triggered . | . . . . . Construction Impeded . | . . . . . Haulers Reinforced . | . . . . . Active Scanning Responses . | . . . . . Cargo Convoy Interrupts . | . . . . . Stealth | -11 -10 -10 -10 -9 --------- Run | Yrd Mat Min Sub Rec Distress Signals 1 | . 1 . . . Communications Jammed . | . . . . . Distress Signals . | . . . . . Times Spotted 45 | . 14 . 27 4 Peak Tracking Total 6 | . 4 . 6 1 Tactical Retreats 6 | . . . 6 . Traps | -11 -10 -10 -10 -9 ------- Run | Yrd Mat Min Sub Rec Traps Triggered 3 | . 1 . 2 . Indirectly . | . . . . . Trap Hack Attempts . | . . . . . Triggered . | . . . . . Disarmed . | . . . . . Reprogrammed . | . . . . . Reused . | . . . . . Traps Extracted . | . . . . . Installed . | . . . . . Triggered . | . . . . . Machines | -11 -10 -10 -10 -9 ---------- Run | Yrd Mat Min Sub Rec Machines Disabled 3 | . 1 . 2 . Max in Single Turn 1 | . 1 . 1 . Machines Repaired . | . . . . . Machines Dismantled . | . . . . . Machines Sabotaged . | . . . . . Overloaded Fab Kills . | . . . . . Hacking | -11 -10 -10 -10 -9 --------- Run | Yrd Mat Min Sub Rec Machines Accessed 21 | . 8 . 2 11 Terminals 13 | . 8 . . 5 Fabricators . | . . . . . Repair Stations . | . . . . . Recycling Units 6 | . . . . 6 Scanalyzers . | . . . . . Garrison Access . | . . . . . Total Hacks 30 | . 13 . 6 11 Successful 26 | . 9 . 6 11 Failed 4 | . 4 . . . Catastrophic . | . . . . . Database Lockouts . | . . . . . Manual 17 | . 12 . . 5 Terminals 18 | . 13 . . 5 Fabricators . | . . . . . Repair Stations . | . . . . . Recycling Units 6 | . . . . 6 Scanalyzers . | . . . . . Garrison Access . | . . . . . Terminal Hacks 7 | . 1 . 6 . Record 5 | . . . 5 . Prototype ID Bank 1 | . 1 . . . Proto ID Catalog 1 | . . . 1 . Fabricator Hacks . | . . . . . Repair Station Hacks . | . . . . . Recycling Unit Hacks 6 | . . . . 6 Retrieve Components 6 | . . . . 6 Scanalyzer . | . . . . . Garrison Access Hacks . | . . . . . Unauthorized Hacks 13 | . 8 . . 5 Terminals 13 | . 8 . . 5 Botnet 13 | . 8 . . 5 Fabricators . | . . . . . Repair Stations . | . . . . . Recycling Units . | . . . . . Scanalyzers . | . . . . . Garrison Access . | . . . . . Data Cores Recovered . | . . . . . Used . | . . . . . Hacking Detections 7 | . 3 . . 4 Full Trace Events . | . . . . . Feedback Events . | . . . . . Feedback Blocked . | . . . . . Robot Schematics Acquired . | . . . . . Robots Built . | . . . . . Authchips . | . . . . . Time . | . . . . . Total Robot Build Rating . | . . . . . Part Schematics Acquired . | . . . . . Parts Built . | . . . . . Authchips . | . . . . . Time . | . . . . . Total Part Build Rating . | . . . . . Part Studies Acquired . | . . . . . Parts Repaired . | . . . . . Time . | . . . . . Parts Recycled . | . . . . . Recycled Matter . | . . . . . Retrieved Matter . | . . . . . Retrieved Components 6 | . . . . 6 Parts Scanalyzed . | . . . . . Part Schematics Acquired . | . . . . . Parts Damaged . | . . . . . Bothacking | -11 -10 -10 -10 -9 ------------ Run | Yrd Mat Min Sub Rec Used RIF Installer . | . . . . . Robots Hacked . | . . . . . Non-combat . | . . . . . Combat . | . . . . . Robot Hacks Applied . | . . . . . Relay Couplers Released . | . . . . . Fabnet Peak Effective % . | . . . . . Robots Rewired . | . . . . . Allies Hacked . | . . . . . Hacks Repelled . | . . . . . Allies | -11 -10 -10 -10 -9 -------- Run | Yrd Mat Min Sub Rec Total Allies . | . . . . . Largest Group . | . . . . . Highest-Rated Group . | . . . . . Highest-Rated Ally . | . . . . . Total Orders . | . . . . . Ally Attacks . | . . . . . Total Damage . | . . . . . Kills . | . . . . . Allies Corrupted . | . . . . . Allies Melted . | . . . . . Intel | -11 -10 -10 -10 -9 ------- Run | Yrd Mat Min Sub Rec Active Infowar (turns) 1661 | 199 567 224 671 . Sensors 621 | . . 211 410 . Terrain 567 | . . 209 358 . Structural 1042 | 199 567 15 261 . Robot Analysis Total . | . . . . . Derelict Logs Recovered 3 | . . 1 2 . Drone Launches . | . . . . . Drone Recoveries . | . . . . . Exploration | -11 -10 -10 -10 -9 ------------- Run | Yrd Mat Min Sub Rec Turns Passed 5585 | 214 567 224 1747 2833 Spaces Moved 4063 | 149 882 635 1756 641 Core 77 | 55 . . 22 . Treads . | . . . . . Legs . | . . . . . Wheels 671 | 94 251 . . 326 Hover . | . . . . . Flight 3315 | . 631 635 1734 315 Fastest Speed 34 | 50 34 34 34 100 Average Speed 116 | 95 47 34 71 420 Slowest Speed 840 | 150 200 34 205 840 Overloaded Moves . | . . . . . Propulsion Burnouts . | . . . . . Robots Hopped 3 | . 1 1 1 . Potential Cave-ins . | . . . . . Cave-ins Triggered . | . . . . . Exploration Rate (%) 72 | 5 98 99 67 91 Regions Visited 4 Branch Regions 3 Pre-discovered Areas 3 | . . . 3 . Known Exits Taken 4 | 1 1 1 1 . Unknown Exits Taken . | . . . . . Scrap Searched 16 | . . . 16 . Spaces Dug . | . . . . . Terrain Destroyed . | . . . . . Melee . | . . . . . Projectile . | . . . . . AOE . | . . . . . Terrain Rammed . | . . . . . Walls Destroyed . | . . . . . Machines Disabled . | . . . . . Actions | -11 -10 -10 -10 -9 --------- Run | Yrd Mat Min Sub Rec Total 4624 | 185 955 642 2120 722 Wait 293 | . 11 . 267 15 Move 4053 | 148 879 632 1753 641 Hop 3 | . 1 1 1 . Pick Up 40 | 10 6 2 15 7 Fast Attach 12 | . 5 1 6 . Attach 18 | 6 2 1 4 5 Detach 6 | . 1 1 3 1 Swap 9 | . 2 1 5 1 Drop 16 | 1 8 3 3 1 Fire 174 | 20 40 . 63 51 Melee . | . . . . . Ram . | . . . . . Kick . | . . . . . Crush . | . . . . . Escape Stasis . | . . . . . Rewire . | . . . . . Trap . | . . . . . Miscellaneous . | . . . . . Route ------- -11/Scrapyard -10/Materials (discovered 5 exits: *Mat x3 / *Min / Sub) -10/Mines (discovered 4 exits: *Mat x2 / *Exi / *Sub) -10/Subcaves -9/Recycling History --------- Turn | Location | Event 7 | -11/Scrapyard | Identified exit to Materials 7 | -11/Scrapyard | Discovered exit to Materials (range 15) 215 | -11/Scrapyard | Entered Materials 215 | -10/Materials | Evolved 1 slot: Propulsion x1 311 | -10/Materials | Build established: Hacker-Mutant 367 | -10/Materials | Identified exit to Materials 367 | -10/Materials | Discovered exit to Materials (range 15) 385 | -10/Materials | Identified exit to Mines 385 | -10/Materials | Discovered exit to Mines (range 16) 480 | -10/Materials | Identified exit to Subcaves 480 | -10/Materials | Discovered exit to Subcaves (range 11) 572 | -10/Materials | Discovered exit to Materials (range 11) 666 | -10/Materials | Discovered exit to Materials (range 15) 782 | -10/Materials | Entered Mines 794 | -10/Mines | Found a damaged Exp. Sensor Array with a note attached 795 | -10/Mines | Found Prototype Device 795 | -10/Mines | Identified Exp. Sensor Array 865 | -10/Mines | Learned location of 1 exit from Materials 894 | -10/Mines | Discovered exit to Materials (range 15) 916 | -10/Mines | Discovered exit to Materials (range 9) 942 | -10/Mines | Deemed a non-threat by the Exiles lab entrance 942 | -10/Mines | Identified exit to Exiles 942 | -10/Mines | Discovered exit to Exiles (range 5) 1001 | -10/Mines | Discovered exit to Subcaves (range 10) 1006 | -10/Mines | Entered Subcaves 1012 | -10/Subcaves | Learned location of Zion (-7) 1100 | -10/Subcaves | Visited 4L-MR0's lab 1119 | -10/Subcaves | Found Rainbow Chip 1234 | -10/Subcaves | Visited Clippyterm 1235 | -10/Subcaves | Learned location of Section 7 (-2) 1235 | -10/Subcaves | Learned Research machine intel 1455 | -10/Subcaves | Core integrity fell below 50% 1469 | -10/Subcaves | Identified exit to Recycling 1469 | -10/Subcaves | Discovered exit to Recycling (range 10) 1484 | -10/Subcaves | Lost 6 parts (1p3n2u) 1640 | -10/Subcaves | Shifting Twisted Machinery released Mak. Flight Unit 1707 | -10/Subcaves | Learned location of Recycling (-9) 1711 | -10/Subcaves | Disturbed a concealed Subdweller 1895 | -10/Subcaves | Shifting Twisted Machinery released Scrap Shield 1902 | -10/Subcaves | Shifting Twisted Machinery released Sub. Laser 2085 | -10/Subcaves | Core integrity fell below 20% 2753 | -10/Subcaves | Entered Recycling 2754 | -9/Recycling | Met a Zionite searching for Scraptown 5586 | -9/Recycling | Destroyed by Y-45 Defender with Heavy Assault Rifle Last Messages --------------- Testing... Terminal linked with 3 systems. Awaiting botnet instructions. 05260_ R-06 Scavenger collects Sml. Storage Unit. 05264_ R-06 Scavenger collects Tractor Beam. 05312_ Connecting with Terminal... >>Trojan(Botnet) Trojan loaded successfully. Testing... Terminal linked with 4 systems. Awaiting botnet instructions. 05322_ Acquired VTOL Module. 05332_ Connecting with Recycling Unit... 05374_ R-06 Scavenger inserts Com. Wheel into recycling unit. 05443_ Y-45 Defender springs to life. 05454_ Y-45 Defender destroyed. 05457_ Acquired 25 matter. 05583_ Y-45 Defender springs to life. Map ----- +----------------------------------------------------+ | ?????????????????????????????????????????????????? | | ?????????????????????????????????????????????????? | | ?????????????????????????????????????????????????? | | ?????????????????????????????????????????????????? | | ?????????????????????????????????????????????????? | | ?????????????????????????????????????????????????? | | ?????????????????????????????????????????????????? | | ?????????????????????????????????????????????????? | | ?????????????????????????????????????????????????? | | ?????????????????????????????????????????????????? | | ?????????????????????????????????????????????????? | | ?????????????????????????????????????????????????? | | ?????????????????????????????????????????????????? | | ###########??????????????????????????????????????? | | #??????????????????????????????????????? | | #???????????????????????????????????????? | | #???????????????????????????????????????? | | #???????????????????????????????????????? | | #???????????????????????????????????????? | | #?#####?????????????????????????????????? | | #?#"""#?????????????????#???????????????? | | #?#"Y"#??????????????? #???????????????? | | #+##+#######" "#########+##### #???????????????? | | #???????????????? | | #???????????????? | | " " " @ #???????????????? | | """ """ """ #####Y#######???????????????? | | """ """ """ #????##?????????????????????? | | """ """ """ #???????????????????????????? | | "" "" "" #???????????????????????????? | | """ """ """ #?##########+###????????????? | | "" "" "" #?# #????????????? | | "" "" "" ### #????????????? | | " " " # #????????????? | | + #????????????? | | # #????????????? | | # ######## ########+## """ #????????????? | | # ???????# # # """"" #????????????? | | # ???????# % # """ """ # """"" #????????????? | | #+######## # """ """ # """"" ""#????????????? | | # # """ """ # """ T"#????????????? | | + + """ """ # ""#????????????? | | # # # #????????????? | | # # ######+##+####????????????? | | # ######## # #????# #???????????????? | | ?????????# ###########????# #???????????????? | | ####?????# % #????????????### #???????????????? | | #???### ##########???#!! #???????????????? | | #???#"" % # #???# ! #???????????????? | | #???#"Y % # ##??#!% #???????????????? | +----------------------------------------------------+ Best States ------------- Heat Dissipation 25 Energy Generation 10 Energy Capacity 125 Matter Stores 300 Matter Capacity 300 Sight Range 16 Robot Scan Range 20 Terrain Scan Range 16 Terrain Scan Density 10 Additional Mass Support 6 Resistance: KI 35 Resistance: TH 35 Resistance: EX 35 Resistance: EM 35 Resistance: I 35 Resistance: S 35 Resistance: P 35 Evasion (%) 63 Offensive Hacking 20 Item Schematics ----------------- None Robot Schematics ------------------ None Fabricated ------------ Nothing Repaired ---------- Nothing Studied --------- None Alien Tech Used ----------------- None Achievements -------------- None Challenges ------------ None Game ------ Seed BurstPotentialTrap Manual? 0 Play Time 00:31:04 Cumulative 190.1 hours Start 2025.12.11 @ 11:44:41 End 2025.12.11 @ 12:11:07 Sessions 1 Manual Loads 0 Difficulty Explorer Special Mode None Game No. 273 Rogue 0 Adventurer 0 Explorer 273 Win Type - Total 0 Types 0/0/0/0/0/0/0/0/0/0 Lore% 71 Gallery% 67 Achievement% 53 Wizard Run 0 Options --------- Layout 1 ASCII 0 Keyboard 0 Movement Mouse Keybinds 0 Fullscreen 1 Font 24/Smallcaps Map View 50x35 Zoom Use 0% Tactical HUD 1 Map Filters NONE Filters NONE Steam 1 RUN: 02942ada-7358-4855-9404-39a7a8f73b77